bitfinex/quotes_SOLUSD_20251216
["timestamp","ask_amount","ask_price","bid_price","bid_amount"]
[1765892027040,16.29812159,128.24,128.17,0.72]
[1765892027342,16.29812159,128.24,128.16,8.80994492]
[1765892027343,11.65404457,128.2,128.16,8.80994492]
[1765892027940,13.0470912,128.21,128.14,8.80994492]
[1765892028138,11.65404457,128.19,128.14,36.12379807]
[1765892028321,35.79281903,128.24,128.15,8.80994492]
[1765892028322,13.0470912,128.23,128.15,8.80994492]
[1765892028518,11.65404457,128.2,128.16,0.72]
[1765892028822,27.29741362,128.22,128.14,7.80336826]
[1765892029023,0.69,128.14,128.06,7.80883137]
[1765892029244,8.5,128.13,128.06,7.80883137]
[1765892029536,0.69,128.21,128.11,0.72]
[1765892029730,13.0470912,128.19,128.12,8.80994492]
[1765892029932,11.65404457,128.17,128.12,8.80994492]
[1765892030245,11.65404457,128.17,128.13,0.72]
[1765892030436,13.0470912,128.19,128.13,0.72]
[1765892030940,11.65404457,128.17,128.13,0.72]
[1765892031146,11.65404457,128.16,128.12,17.33466415]
[1765892031351,20.8485913,128.19,128.13,8.52451986]
[1765892031523,11.65404457,128.18,128.13,8.52451986]
[1765892031719,11.65404457,128.19,128.15,0.72]
[1765892031921,11.65404457,128.2,128.15,0.72]
[1765892032225,11.65404457,128.18,128.15,0.72]
[1765892032440,7.79918899,128.22,128.16,8.80994492]
[1765892032623,11.65404457,128.21,128.16,9.52994492]
[1765892032817,11.65404457,128.2,128.16,9.52994492]
[1765892033247,27.29692725,128.22,128.15,7.80325705]
[1765892033248,11.65404457,128.19,128.15,0.72]
[1765892033438,27.29692725,128.22,128.15,0.72]
[1765892033439,11.65404457,128.2,128.15,0.72]
[1765892033750,11.65404457,128.19,128.14,0.72]
[1765892034150,11.65404457,128.18,128.14,0.72]
[1765892034357,27.29692725,128.22,128.15,8.80994492]
[1765892034561,8.5,128.24,128.17,9.52994492]
[1765892034722,11.65404457,128.21,128.17,8.80994492]
[1765892034928,11.65404457,128.19,128.14,0.72]
[1765892035124,11.65404457,128.19,128.16,0.72]
[1765892035329,11.65404457,128.18,128.14,8.52342008]
[1765892035929,13.0470912,128.2,128.15,8.80994492]
[1765892036123,11.65404457,128.19,128.16,7.80260796]
[1765892036353,24.70113577,128.2,128.17,0.72]
[1765892036560,13.0470912,128.22,128.17,7.8018216]
[1765892036760,16.98735113,128.25,128.19,8.80994492]
[1765892037066,11.65404457,128.2,128.17,0.72]
[1765892037229,11.65404457,128.22,128.17,0.72]
[1765892037438,16.29735113,128.25,128.18,8.80994492]
[1765892037734,11.65404457,128.24,128.2,0.72]
[1765892037971,16.98666031,128.27,128.19,16.61080964]
[1765892037972,35.7867983,128.27,128.19,16.61080964]
[1765892038173,13.0470912,128.26,128.2,8.80994492]
[1765892038465,35.7867983,128.27,128.21,0.72]
[1765892038466,16.29666031,128.27,128.21,0.72]
[1765892038649,11.65404457,128.25,128.21,0.72]
[1765892038824,11.65404457,128.25,128.21,7.79917578]
[1765892039028,8.5,128.27,128.22,8.80994492]
[1765892039229,11.65404457,128.26,128.22,9.52994492]
[1765892039545,0.1,128.28,128.23,0.72]
[1765892039729,0.1,128.28,128.25,8.80994492]
[1765892039929,0.1,128.28,128.26,0.72]
[1765892040165,11.75404457,128.28,128.24,9.52994492]
[1765892040374,7.79168164,128.35,128.28,0.72]
[1765892040662,11.65404457,128.33,128.24,13.0470912]
[1765892040827,7.793185,128.32,128.28,8.80994492]
[1765892041025,0.69,128.35,128.28,16.60528476]
[1765892041026,7.79180302,128.34,128.28,16.60528476]
[1765892041227,23.52748972,128.37,128.29,0.72]
[1765892041425,23.52748972,128.37,128.31,0.72]
[1765892041426,11.65404457,128.37,128.31,0.72]
[1765892041651,11.65404457,128.35,128.3,9.52994492]
[1765892041842,7.89015047,128.37,128.3,8.80994492]
[1765892042062,27.36510567,128.37,128.3,0.72]
[1765892042342,11.65404457,128.33,128.29,9.52994492]
[1765892042538,11.65404457,128.32,128.29,8.80994492]
[1765892042730,12.34404457,128.3,128.22,0.72]
[1765892042928,11.65404457,128.25,128.13,18.74]
[1765892043123,13.7370912,128.26,128.14,8.52]
[1765892043324,8.5,128.27,128.19,0.72]
[1765892043635,11.65404457,128.26,128.2,0.71]
[1765892043850,11.65404457,128.26,128.21,0.71]
[1765892044150,11.65404457,128.26,128.22,9.51994492]
[1765892044355,20.15404457,128.27,128.23,0.71]
[1765892044554,11.65404457,128.24,128.18,7.80103387]
[1765892044853,7.79666302,128.26,128.2,0.71]
[1765892045156,7.79666302,128.26,128.16,13.0470912]
[1765892045157,11.65404457,128.23,128.17,20.21527701]
[1765892045354,11.65404457,128.21,128.16,0.71]
[1765892045541,13.7670912,128.25,128.14,12.36404457]
[1765892045542,11.65404457,128.2,128.14,12.36404457]
[1765892045733,11.65404457,128.19,128.14,8.51385981]
[1765892045923,11.65404457,128.17,128.11,11.65404457]
[1765892046127,11.65404457,128.18,128.13,0.71]
[1765892046323,11.65404457,128.17,128.13,0.71]
[1765892046730,0.72,128.25,128.16,0.71]
[1765892046930,11.65404457,128.19,128.14,8.51382062]
[1765892047154,11.65404457,128.18,128.14,8.51382062]
[1765892047377,13.0470912,128.21,128.11,0.71]
[1765892047549,11.65404457,128.12,128.05,7.8091753]
[1765892047735,11.65404457,128.12,127.95,51.92595954]
[1765892047740,11.65404457,128.06,128.0,0.71]
[1765892047935,11.65404457,128.02,127.97,7.81378584]
[1765892048170,8.5,128.01,127.91,0.2]
[1765892048370,11.65404457,128.1,127.91,20.45447164]
[1765892048371,11.65404457,127.98,127.91,20.45447164]
[1765892048664,8.5,128.0,127.92,0.71]
[1765892048866,8.5,128.0,127.93,0.71]
[1765892049050,16.31004868,128.05,127.96,0.71]
[1765892049369,13.0470912,128.01,127.93,0.71]
[1765892049565,8.5,128.04,127.93,0.71]
[1765892049868,7.81004868,128.05,127.92,35.88085052]
[1765892050041,19.46295284,128.06,127.93,0.71]
[1765892050239,11.65404457,128.03,127.98,0.71]
[1765892050562,8.5,128.05,127.93,0.71]
[1765892050861,8.5,128.05,127.98,16.62366581]
[1765892050862,16.30968712,128.05,127.98,16.62366581]
[1765892051164,16.30968712,128.05,127.99,0.71]
[1765892051331,35.8333107,128.05,127.99,0.71]
[1765892051537,35.8333107,128.05,127.98,0.71]
[1765892051945,8.5,128.05,128.0,0.71]
[1765892052139,16.30946004,128.05,128.0,0.71]
[1765892052339,28.0746179,128.05,128.0,0.71]
[1765892052538,11.76511718,128.07,128.02,0.71]
[1765892052841,8.5,128.09,128.02,0.71]
[1765892053040,20.26511718,128.09,128.05,0.71]
[1765892053366,13.43038214,128.11,128.06,8.80994492]
[1765892053563,13.43038214,128.25,128.09,22.95032706]
[1765892053564,8.5,128.18,128.09,22.95032706]
[1765892053773,8.5,128.18,128.03,13.0470912]
[1765892053774,13.0470912,128.17,128.06,0.71]
[1765892053950,13.43038214,128.12,128.08,0.71]
[1765892054273,8.5,128.13,128.03,0.71]
[1765892054448,13.0470912,128.12,128.04,0.71]
[1765892054670,13.43038214,128.05,128.0,8.80994492]
[1765892054863,7.80822987,128.07,128.01,0.71]
[1765892055045,13.43038214,128.04,128.0,0.71]
[1765892055538,13.43038214,128.05,128.01,0.71]
[1765892055739,13.43038214,128.05,128.01,8.52182099]
[1765892055939,13.43038214,128.02,127.98,0.71]
[1765892056139,13.43038214,128.02,127.97,22.24032706]
[1765892056140,13.43038214,128.01,127.97,9.51994492]
[1765892056356,13.43038214,128.02,127.98,0.71]
[1765892056560,13.43038214,128.04,127.99,0.71]
[1765892056779,13.43038214,128.04,128.0,0.71]
[1765892057074,19.51760407,128.09,128.01,22.95032706]
[1765892057279,40.37221334,128.09,127.99,8.80994492]
[1765892057455,13.43038214,128.04,128.0,0.71]
[1765892058075,27.32512214,128.09,128.01,0.71]
[1765892058364,8.52,128.1,128.06,0.71]
[1765892058664,13.43038214,128.1,128.06,0.71]
[1765892058867,40.36367731,128.13,128.06,0.71]
[1765892059053,13.43038214,128.09,128.05,8.51941808]
[1765892059369,13.43038214,128.09,128.01,0.71]
[1765892059537,21.5670912,128.1,128.01,0.71]
[1765892059743,13.43038214,128.06,128.01,0.71]
[1765892060266,13.43038214,128.07,128.03,0.71]
[1765892060470,13.43038214,128.05,128.0,30.05277651]
[1765892060678,13.43038214,128.03,127.99,8.80994492]
[1765892060842,13.43038214,128.02,127.97,0.71]
[1765892061044,13.43038214,128.01,127.97,0.71]
[1765892061269,7.81051172,128.04,127.98,0.71]
[1765892061449,13.43038214,128.03,128.0,0.71]
[1765892061649,0.99999999,128.15,128.02,13.43038214]
[1765892061966,13.43038214,128.07,127.99,0.71]
[1765892062188,13.43038214,128.07,127.98,13.0470912]
[1765892062189,13.43038214,128.01,127.97,0.71]
[1765892062365,8.52,128.03,127.94,13.43038214]
[1765892062555,8.52,128.02,127.94,13.43038214]
[1765892062758,13.43038214,127.98,127.93,0.71]
[1765892062957,27.34802312,127.98,127.91,0.2]
[1765892063290,0.99999999,127.92,127.91,1e-08]
[1765892063476,13.0470912,127.89,127.81,0.2]
[1765892063789,0.99999999,127.86,127.81,0.2]
[1765892063993,26.47747334,127.82,127.81,0.2]
[1765892064162,21.5670912,127.82,127.72,10.49607508]
[1765892064497,13.43038214,127.77,127.73,0.71]
[1765892064797,13.0470912,127.79,127.72,2.66651713]
[1765892064960,26.47747334,127.73,127.72,2.66651713]
[1765892065165,7.82717595,127.76,127.72,2.66651713]
[1765892065389,13.0470912,127.77,127.72,2.66651713]
[1765892065659,0.99999999,127.75,127.56,31.35026104]
[1765892065997,7.8265153,127.78,127.56,31.35026104]
[1765892066162,9.51999999,127.79,127.68,13.0470912]
[1765892066362,0.99999999,127.78,127.6,0.78369905]
[1765892066570,0.67947511,127.77,127.7,0.71]
[1765892066763,0.67947511,127.77,127.71,5.69441985]
[1765892066983,7.2448178,127.79,127.65,39.16689441]
[1765892066984,19.559457,127.82,127.73,0.71]
[1765892067203,7.82044263,127.87,127.75,0.71]
[1765892067388,16.34044263,127.87,127.79,0.71]
[1765892067576,39.07879367,127.95,127.81,0.71]
[1765892067577,7.81935436,127.89,127.81,0.71]
[1765892067777,7.81935436,127.89,127.79,8.80994492]
[1765892067981,16.33826717,127.91,127.8,0.71]
[1765892068178,16.33826717,127.91,127.76,8.80994492]
[1765892068361,16.33826717,127.91,127.77,0.71]
[1765892068562,74.97324488,127.91,127.73,0.71]
[1765892068784,13.0470912,127.81,127.59,0.99999999]
[1765892068983,0.99999999,127.85,127.56,4.85420585]
[1765892068984,13.0470912,127.74,127.63,0.71]
[1765892069188,13.0470912,127.7,127.58,0.71]
[1765892069375,28.39297173,127.77,127.6,13.43038214]
[1765892069580,13.43038214,127.68,127.62,0.71]
[1765892069776,8.52,127.76,127.61,7.83617784]
[1765892069993,13.43038214,127.73,127.62,0.71]
[1765892070186,13.0470912,127.73,127.62,0.71]
[1765892070506,13.0470912,127.74,127.63,0.71]
[1765892070674,13.0470912,127.74,127.64,0.71]
[1765892070869,13.43038214,127.68,127.64,0.71]
[1765892071082,13.43038214,127.65,127.58,7.83820395]
[1765892071412,8.52,127.64,127.55,8.5499864]
[1765892071709,13.43038214,127.61,127.5,10.0]
[1765892072004,13.43038214,127.55,127.5,10.0]
[1765892072189,13.0470912,127.58,127.51,7.84231758]
[1765892072385,21.5670912,127.58,127.5,10.0]
[1765892072602,8.52,127.58,127.5,17.84299237]
[1765892072811,8.52,127.58,127.5,10.0]
[1765892072812,13.0470912,127.55,127.5,10.0]
[1765892073104,7.84252215,127.51,127.5,10.0]
[1765892073309,27.44342195,127.54,127.5,10.0]
[1765892073495,7.8394481,127.56,127.51,0.71]
[1765892073700,7.83576241,127.62,127.51,0.71]
[1765892073887,4.07369928,127.63,127.56,0.69]
[1765892074090,27.42087119,127.64,127.54,8.80994492]
[1765892074287,11.90767332,127.64,127.54,8.80994492]
[1765892074908,4.0731387,127.64,127.61,7.83637645]
[1765892075206,13.43038214,127.68,127.63,13.43038214]
[1765892075413,4.07278272,127.71,127.61,27.42731759]
[1765892075414,13.43038214,127.7,127.61,27.42731759]
[1765892075574,28.11230781,127.74,127.61,27.42731759]
[1765892075575,7.82901432,127.73,127.61,27.42731759]
[1765892075777,7.82901432,127.73,127.61,7.83637645]
[1765892075778,0.69,127.69,127.61,7.83637645]
[1765892076109,4.07216669,127.73,127.67,13.43038214]
[1765892076302,8.51411391,127.81,127.71,9.49994492]
[1765892076499,8.51411391,127.81,127.71,0.69]
[1765892076500,13.43038214,127.76,127.71,0.69]
[1765892076817,13.43038214,127.72,127.65,0.69]
[1765892076980,13.43038214,127.66,127.61,0.69]
[1765892077314,0.69,127.68,127.59,8.52754632]
[1765892077478,0.69,127.68,127.59,21.95792846]
[1765892077679,7.83041381,127.71,127.64,0.69]
[1765892077902,13.43038214,127.72,127.67,8.80994492]
[1765892078080,13.43038214,127.71,127.63,13.0470912]
[1765892078288,13.43038214,127.7,127.63,13.0470912]
[1765892078481,8.54,127.72,127.64,0.69]
[1765892078683,13.43038214,127.7,127.64,0.69]
[1765892078883,13.43038214,127.7,127.65,7.83392087]
[1765892079105,13.43038214,127.66,127.58,0.69]
[1765892079277,13.0470912,127.68,127.59,7.83760482]
[1765892079475,7.82901432,127.73,127.62,0.69]
[1765892079719,13.43038214,127.71,127.64,0.69]
[1765892079891,20.25713053,127.77,127.68,0.69]
[1765892080089,13.43038214,127.72,127.68,0.69]
[1765892080291,13.43038214,127.69,127.64,0.69]
[1765892080492,8.54,127.72,127.62,0.69]
[1765892080808,0.69,127.74,127.64,0.69]
[1765892081011,13.43038214,127.71,127.67,8.80994492]
[1765892081189,13.43038214,127.73,127.69,8.80994492]
[1765892081512,4.07403281,127.8,127.73,8.80994492]
[1765892081716,13.43038214,127.8,127.75,8.80994492]
[1765892081892,13.43038214,127.78,127.72,0.69]
[1765892082083,13.43038214,127.78,127.73,8.80994492]
[1765892082285,4.76146303,127.83,127.74,0.69]
[1765892082506,13.43038214,127.76,127.66,0.69]
[1765892082695,0.69,127.77,127.67,0.69]
[1765892082895,0.69,127.74,127.65,8.52392087]
[1765892083095,13.43038214,127.71,127.66,0.69]
[1765892083423,29.41486113,127.76,127.67,0.69]
[1765892083713,13.43038214,127.72,127.67,0.69]
[1765892083892,13.43038214,127.73,127.67,0.69]
[1765892084094,0.69,127.75,127.65,8.52392087]
[1765892084410,13.43038214,127.67,127.65,7.83392087]
[1765892084707,13.43038214,127.7,127.65,27.41872306]
[1765892084907,39.12242007,127.81,127.66,8.80994492]
[1765892085119,13.43038214,127.77,127.7,8.80994492]
[1765892085286,16.36269478,127.84,127.73,21.85703612]
[1765892085589,13.43038214,127.78,127.71,21.85703612]
[1765892085784,20.44167935,127.84,127.71,35.28741826]
[1765892086005,13.43038214,127.79,127.74,8.80994492]
[1765892086318,13.43038214,127.8,127.72,8.80994492]
[1765892086710,13.43038214,127.78,127.73,0.69]
[1765892086900,13.43038214,127.78,127.74,9.49994492]
[1765892087096,13.43038214,127.78,127.75,7.82778864]
[1765892087291,13.43038214,127.78,127.74,8.51832629]
[1765892087622,8.54,127.78,127.72,0.69]
[1765892087820,9.23,127.82,127.73,9.49994492]
[1765892088124,13.43038214,127.78,127.71,13.0470912]
[1765892088328,13.43038214,127.74,127.72,7.82954365]
[1765892088531,0.69,127.79,127.72,7.82954365]
[1765892088689,13.43038214,127.78,127.75,9.49994492]
[1765892089108,13.43038214,127.79,127.75,17.32713109]
[1765892089315,4.76640503,127.83,127.77,8.80994492]
[1765892089316,8.54,127.83,127.77,8.80994492]
[1765892089491,13.43038214,127.81,127.77,0.69]
[1765892089690,13.43038214,127.83,127.77,0.69]
[1765892089900,13.43038214,127.79,127.76,9.49994492]
[1765892090108,13.43038214,127.79,127.75,7.82718617]
[1765892090302,13.43038214,127.77,127.73,0.69]
[1765892090718,13.0470912,127.83,127.74,29.07079775]
[1765892090719,13.43038214,127.78,127.74,29.07079775]
[1765892090895,13.43038214,127.75,127.63,19.58737217]
[1765892091095,13.43038214,127.66,127.61,0.69]
[1765892091608,13.0470912,127.71,127.61,0.69]
[1765892091810,13.43038214,127.63,127.51,23.60052167]
[1765892092010,13.43038214,127.55,127.5,10.0]
[1765892092199,13.43038214,127.53,127.51,0.69]
[1765892092400,24.26999999,127.7,127.51,7.84245922]
[1765892092618,13.0470912,127.68,127.52,0.69]
[1765892092808,13.0470912,127.68,127.51,7.84245922]
[1765892092809,13.0470912,127.68,127.51,27.4487646]
[1765892093131,7.84144989,127.53,127.5,10.0]
[1765892093303,13.43038214,127.52,127.5,10.0]
[1765892093498,7.84067973,127.54,127.5,10.0]
[1765892093718,13.0470912,127.57,127.5,10.69]
[1765892093919,13.0470912,127.56,127.5,10.0]
[1765892094324,13.43038214,127.51,127.5,10.0]
[1765892094832,19.59522266,127.59,127.51,0.69]
[1765892094833,13.0470912,127.58,127.51,0.69]
[1765892095009,7.83330722,127.66,127.56,8.80994492]
[1765892095330,66.58311138,127.66,127.53,0.69]
[1765892095508,13.43038214,127.65,127.53,8.53124797]
[1765892095719,13.43038214,127.65,127.54,0.69]
[1765892095916,67.58311137,127.66,127.54,0.69]
[1765892095917,27.41657527,127.66,127.55,9.49994492]
[1765892096103,13.43038214,127.58,127.55,0.69]
[1765892096308,13.0470912,127.62,127.51,9.49994492]
[1765892096505,13.43038214,127.55,127.5,10.0]
[1765892096800,8.54,127.63,127.54,9.49994492]
[1765892097012,13.43038214,127.58,127.54,0.69]
[1765892097236,13.43038214,127.58,127.51,9.49994492]
[1765892097427,13.43038214,127.57,127.51,9.49994492]
[1765892097633,13.0470912,127.59,127.51,0.69]
[1765892097928,13.0470912,127.59,127.52,7.84184965]
[1765892098118,13.43038214,127.58,127.53,8.53126541]
[1765892098432,13.43038214,127.54,127.5,10.0]
[1765892098730,13.43038214,127.51,127.5,10.0]
[1765892098906,13.0470912,127.56,127.5,10.0]
[1765892099228,13.43038214,127.51,127.5,10.0]
[1765892099528,21.97038214,127.51,127.5,1e-08]
[1765892099908,35.40076428,127.51,127.4,2.9117976]
[1765892100110,13.43038214,127.43,127.4,2.9117976]
[1765892100310,13.43038214,127.41,127.4,1e-08]
[1765892100527,13.43038214,127.41,127.26,19.64355687]
[1765892100831,13.43038214,127.31,127.24,0.69]
[1765892101132,13.43038214,127.26,127.18,19.65595599]
[1765892101431,13.0470912,127.2,127.13,19.66364408]
[1765892101610,8.80994492,127.28,127.16,0.69]
[1765892101810,13.0470912,127.26,127.16,0.69]
[1765892102012,27.49677571,127.29,127.16,0.69]
[1765892102211,27.49677571,127.29,127.16,1.68999999]
[1765892102212,7.85658403,127.29,127.16,1.68999999]
[1765892102445,7.85531492,127.31,127.19,0.99999999]
[1765892102606,13.43038214,127.33,127.28,0.69]
[1765892102817,13.43038214,127.32,127.28,0.69]
[1765892103129,39.50332251,127.43,127.19,8.56]
[1765892103130,7.84806152,127.42,127.35,0.69]
[1765892103304,7.84375245,127.49,127.35,0.69]
[1765892103723,8.54,127.48,127.36,13.43038214]
[1765892103926,8.54,127.48,127.34,0.71]
[1765892104133,13.43038214,127.41,127.36,0.71]
[1765892104336,7.84498313,127.47,127.36,0.71]
[1765892104504,7.84498313,127.47,127.37,0.71]
[1765892104839,8.54,127.48,127.42,0.71]
[1765892105034,16.38484019,127.48,127.37,8.80994492]
[1765892105343,35.99575954,127.48,127.39,0.71]
[1765892105507,13.43038214,127.43,127.35,9.51994492]
[1765892105712,7.84484019,127.48,127.4,0.71]
[1765892105931,7.84373537,127.5,127.41,0.71]
[1765892106249,27.43591753,127.57,127.45,7.8462142]
[1765892106539,7.83883358,127.57,127.47,0.71]
[1765892106713,8.56,127.58,127.51,14.14038214]
[1765892106908,8.56,127.58,127.48,8.80994492]
[1765892106909,8.56,127.58,127.53,13.43038214]
[1765892107118,21.99038214,127.58,127.53,0.71]
[1765892107314,8.56,127.58,127.53,13.43038214]
[1765892107542,8.56,127.58,127.48,21.85703612]
[1765892107543,39.15818909,127.69,127.54,0.71]
[1765892107731,13.43038214,127.65,127.58,13.43038214]
[1765892107940,13.43038214,127.66,127.59,13.43038214]
[1765892108114,16.39256768,127.68,127.61,14.14038214]
[1765892108316,8.56,127.68,127.62,21.97614455]
[1765892108569,13.43038214,127.71,127.63,0.71]
[1765892108740,8.56,127.73,127.64,0.71]
[1765892109063,75.07537677,127.79,127.67,14.14038214]
[1765892109369,75.07537677,127.79,127.66,13.43038214]
[1765892109526,35.94868455,127.79,127.7,14.14038214]
[1765892109727,13.43038214,127.8,127.74,0.71]
[1765892109971,19.55955099,127.82,127.74,0.71]
[1765892110278,13.43038214,127.75,127.68,0.71]
[1765892110432,8.54,127.77,127.68,7.83189931]
[1765892110635,19.56028479,127.81,127.71,8.80994492]
[1765892110843,28.10028479,127.81,127.66,0.71]
[1765892111042,13.43038214,127.74,127.69,0.71]
[1765892111327,28.10028479,127.81,127.65,13.0470912]
[1765892111529,13.0470912,127.78,127.7,0.71]
[1765892111728,13.0470912,127.78,127.7,22.24032706]
[1765892111934,8.54,127.81,127.74,0.71]
[1765892112150,13.43038214,127.79,127.74,0.71]
[1765892112325,8.54,127.81,127.77,0.71]
[1765892112527,13.43038214,127.8,127.77,0.71]
[1765892112744,21.97038214,127.81,127.77,0.71]
[1765892112938,21.97038214,127.81,127.71,13.0470912]
[1765892112939,26.47747334,127.78,127.61,0.99999999]
[1765892113139,13.0470912,127.78,127.7,0.71]
[1765892113440,13.0470912,127.78,127.71,5.68328023]
[1765892113630,40.43158535,127.81,127.74,0.71]
[1765892113844,40.43158535,127.81,127.71,8.80994492]
[1765892114036,8.54,127.83,127.76,0.71]
[1765892114037,7.8234202,127.83,127.76,0.71]
[1765892114353,13.43038214,127.83,127.81,0.71]
[1765892114654,4.07532574,127.88,127.84,0.71]
[1765892114856,7.81677479,127.93,127.86,0.71]
[1765892115361,8.54,127.94,127.87,0.71]
[1765892115538,11.78585906,127.88,127.82,8.80994492]
[1765892115854,11.78585906,127.93,127.89,0.71]
[1765892116234,8.54,127.94,127.9,8.80994492]
[1765892116431,64.8208111,128.08,127.91,0.71]
[1765892116432,19.6002729,127.97,127.91,0.71]
[1765892116630,11.78585906,127.97,127.93,0.71]
[1765892116831,11.78585906,127.98,127.94,6.36635431]
[1765892117062,8.54,128.0,127.96,0.71]
[1765892117229,11.78585906,127.99,127.97,5.65635431]
[1765892117434,19.52708166,128.03,127.98,6.36635431]
[1765892117435,4.07249472,128.03,127.98,6.36635431]
[1765892117730,11.78585906,128.02,127.99,5.65635431]
[1765892118051,11.78585906,128.0,127.95,0.71]
[1765892118258,7.81306775,128.0,127.95,0.71]
[1765892118456,11.78585906,128.02,127.95,0.71]
[1765892118653,7.80457348,128.13,128.02,8.80994492]
[1765892118962,11.78585906,128.08,128.03,0.71]
[1765892119162,4.0719516,128.12,128.05,0.71]
[1765892119360,11.78585906,128.12,128.07,0.71]
[1765892119662,11.78585906,128.12,127.95,78.2177813]
[1765892119663,11.78585906,128.08,127.99,0.71]
[1765892119865,11.78585906,128.04,128.0,5.6205061]
[1765892120033,8.54,128.07,127.98,0.71]
[1765892120236,20.85532107,128.07,127.99,6.33132009]
[1765892120436,8.54,128.06,127.99,0.71]
[1765892120636,8.54,128.06,127.96,8.80994492]
[1765892120832,13.0470912,128.05,127.98,0.71]
[1765892121253,11.76994113,128.0,127.98,0.71]
[1765892121563,13.0470912,128.05,127.98,0.71]
[1765892121734,11.76994113,128.01,127.98,0.71]
[1765892121935,11.76994113,127.99,127.9,0.71]
[1765892122132,8.54,128.01,127.94,11.76994113]
[1765892122333,13.0470912,128.04,127.86,47.64475684]
[1765892122334,11.76994113,128.03,127.98,0.71]
[1765892122568,11.76994113,127.99,127.86,39.10475684]
[1765892122769,11.76994113,127.98,127.93,0.71]
[1765892122936,11.76994113,127.97,127.93,0.71]
[1765892123139,21.5870912,128.01,127.93,0.71]
[1765892123337,8.54,128.01,127.88,0.71]
[1765892123539,11.76994113,127.93,127.88,0.71]
[1765892123741,11.76994113,127.91,127.88,0.71]
[1765892123967,11.76994113,127.92,127.88,0.71]
[1765892124161,11.76994113,127.92,127.86,7.82100747]
[1765892124162,66.3860624,128.04,127.9,0.71]
[1765892124484,13.0470912,128.0,127.83,0.71]
[1765892124782,11.76994113,127.92,127.83,0.71]
[1765892124964,8.52,127.96,127.9,0.71]
[1765892125160,8.52,127.96,127.92,0.71]
[1765892125161,20.28994113,127.96,127.92,0.71]
[1765892125463,8.52,128.02,127.92,0.71]
[1765892125765,21.5670912,128.02,127.92,12.47994113]
[1765892125971,21.5670912,128.02,127.93,0.71]
[1765892126343,7.81301659,128.0,127.94,0.71]
[1765892126544,27.34426659,128.0,127.9,0.71]
[1765892126767,7.81301659,128.0,127.92,11.76994113]
[1765892126990,28.04743772,128.03,127.92,11.76994113]
[1765892126991,8.52,128.03,127.97,0.71]
[1765892127312,11.76994113,128.0,127.95,0.71]
[1765892127461,11.76994113,128.01,127.95,0.71]
[1765892127668,16.33078819,128.03,127.98,0.71]
[1765892127856,11.76994113,128.01,127.98,0.71]
[1765892128051,16.33078819,128.03,127.98,0.71]
[1765892128477,8.52,128.03,127.99,0.71]
[1765892128680,8.52,128.03,127.99,11.76994113]
[1765892128858,7.80869503,128.07,128.01,0.71]
[1765892129046,19.51898977,128.09,128.03,0.71]
[1765892129047,11.76994113,128.08,128.03,0.71]
[1765892129252,7.80741436,128.09,128.05,0.71]
[1765892129474,8.52,128.1,128.05,0.71]
[1765892129867,8.52,128.1,128.06,0.71]
[1765892130261,8.52,128.1,128.08,0.71]
[1765892130460,11.76994113,128.13,128.08,0.71]
[1765892130762,7.80459413,128.13,128.08,0.71]
[1765892131074,11.76994113,128.1,128.08,0.71]
[1765892131273,11.76994113,128.11,128.08,0.71]
[1765892131478,11.76994113,128.1,128.08,0.71]
[1765892131700,11.76994113,128.09,128.05,0.71]
[1765892131997,11.76994113,128.1,128.06,0.71]
[1765892132158,11.76994113,128.11,128.08,0.71]
[1765892132784,11.76994113,128.09,128.01,0.71]
[1765892132977,11.76994113,128.09,127.94,0.99999999]
[1765892132978,11.76994113,128.06,128.02,7.81120234]
[1765892133176,16.32595293,128.11,128.03,0.71]
[1765892133680,16.32595293,128.11,128.05,0.7]
[1765892133880,16.32595293,128.11,128.04,0.7]
[1765892133881,11.76994113,128.07,128.04,0.7]
[1765892134086,11.76994113,128.09,128.04,0.7]
[1765892134262,16.32595293,128.11,128.05,8.80994492]